fUST/lending_fUST_20241223
["ID","MTS","AMOUNT","RATE_DAILY","PERIOD"]
[346329640,1734895839825,-503.77,0.00013698,2]
[346329642,1734895839835,-500.0,0.00013698,2]
[346329644,1734895839844,-500.0,0.00013698,2]
[346329646,1734895839854,-1597.35,0.00013698,2]
[346329648,1734895839863,-500.0,0.00013698,2]
[346329650,1734895839873,-500.0,0.00013698,2]
[346329652,1734895839882,-500.0,0.00013698,2]
[346329654,1734895839892,-1443.93915033,0.00013698,2]
[346329656,1734895839901,-13756.3981059,0.00013699,2]
[346329658,1734895839911,-829.507712,0.00013699,2]
[346329660,1734895839921,-195.0714066,0.00013699,2]
[346329662,1734895839931,-2735.53203099,0.00013699,2]
[346329664,1734895839940,-2735.53203099,0.00013699,2]
[346329666,1734895839950,-2735.53203099,0.00013699,2]
[346329668,1734895839959,-2735.53203099,0.00013699,2]
[346329670,1734895839969,-2735.53203099,0.00013699,2]
[346329672,1734895839979,-2735.53203099,0.00013699,2]
[346329674,1734895839989,-2735.53203099,0.00013699,2]
[346329676,1734895839999,-2735.53203099,0.00013699,2]
[346329678,1734895840008,-2735.53203099,0.00013699,2]
[346329680,1734895840017,-2735.53203099,0.00013699,2]
[346329682,1734895840027,-2735.53203099,0.00013699,2]
[346329684,1734895840037,-2735.53203099,0.00013699,2]
[346329686,1734895840046,-2735.53203099,0.00013699,2]
[346329689,1734895840056,-2735.53203099,0.00013699,2]
[346329690,1734895840065,-2735.53203099,0.00013699,2]
[346329692,1734895840075,-2735.53203099,0.00013699,2]
[346329694,1734895840084,-2735.53203099,0.00013699,2]
[346329696,1734895840094,-2735.53203099,0.00013699,2]
[346329699,1734895840103,-2735.53203099,0.00013699,2]
[346329701,1734895840113,-1419.08530355,0.00013699,2]
[346329727,1734895840351,-500.0,0.00013698,2]
[346329729,1734895840361,-1316.44672744,0.00013699,2]
[346329731,1734895840371,-2004.95327211,0.00013699,2]
[346329733,1734895840383,-730.57875888,0.00013699,2]
[346329735,1734895840393,-2735.53203099,0.00013699,2]
[346329737,1734895840403,-2735.53203099,0.00013699,2]
[346329739,1734895840412,-1534.71910202,0.00013699,2]
[346329762,1734895840632,-743.56117693,0.00013699,2]
[346329764,1734895840645,-457.25175204,0.00013699,2]
[346329766,1734895840654,-831.66902088,0.00013699,2]
[346329789,1734895840907,-1903.86301011,0.00013699,2]
[346329791,1734895840917,-2735.53203099,0.00013699,2]
[346329793,1734895840926,-2735.53203099,0.00013699,2]
[346329795,1734895840936,-2210.22579897,0.00013699,2]
[346329823,1734895841182,-368.97046807,0.00013699,2]
[346330106,1734895843808,-1278.4771933,0.00013698,2]
[346330127,1734895844003,-3387.6128067,0.00013698,2]
[346330129,1734895844014,-500.0,0.00013698,2]
[346330131,1734895844024,-156.33576395,0.00013699,2]
[346330133,1734895844033,-2735.53203099,0.00013699,2]
[346330135,1734895844043,-2735.53203099,0.00013699,2]
[346330137,1734895844052,-2735.53203099,0.00013699,2]
[346330139,1734895844062,-2735.53203099,0.00013699,2]
[346330141,1734895844072,-2735.53203099,0.00013699,2]
[346330143,1734895844081,-2735.53203099,0.00013699,2]
[346330145,1734895844091,-2735.53203099,0.00013699,2]
[346330147,1734895844101,-2735.53203099,0.00013699,2]
[346330149,1734895844111,-2735.53203099,0.00013699,2]
[346330151,1734895844120,-2735.53203099,0.00013699,2]
[346330153,1734895844130,-2735.53203099,0.00013699,2]
[346330155,1734895844140,-2735.53203099,0.00013699,2]
[346330157,1734895844150,-2735.53203099,0.00013699,2]
[346330159,1734895844159,-653.65034989,0.00013699,2]
[346330335,1734895846094,-505.53,0.00013698,2]
[346330337,1734895846104,-5369.44,0.00013698,2]
[346330339,1734895846114,-500.0,0.00013698,2]
[346330341,1734895846124,-2081.8816811,0.00013699,2]
[346330343,1734895846133,-2735.53203099,0.00013699,2]
[346330345,1734895846143,-2735.53203099,0.00013699,2]
[346330347,1734895846152,-2735.53203099,0.00013699,2]
[346330349,1734895846162,-2735.53203099,0.00013699,2]
[346330351,1734895846171,-2735.53203099,0.00013699,2]
[346330353,1734895846181,-2735.53203099,0.00013699,2]
[346330355,1734895846190,-2735.53203099,0.00013699,2]
[346330357,1734895846199,-2735.53203099,0.00013699,2]
[346330359,1734895846211,-2735.53203099,0.00013699,2]
[346330361,1734895846221,-2735.53203099,0.00013699,2]
[346330363,1734895846230,-2735.53203099,0.00013699,2]
[346330365,1734895846240,-2735.53203099,0.00013699,2]
[346330367,1734895846249,-2735.53203099,0.00013699,2]
[346330369,1734895846259,-2735.53203099,0.00013699,2]
[346330371,1734895846269,-2735.53203099,0.00013699,2]
[346330373,1734895846278,-2735.53203099,0.00013699,2]
[346330375,1734895846287,-2735.53203099,0.00013699,2]
[346330377,1734895846296,-2735.53203099,0.00013699,2]
[346330379,1734895846305,-2735.53203099,0.00013699,2]
[346330381,1734895846314,-2735.53203099,0.00013699,2]
[346330383,1734895846324,-2735.53203099,0.00013699,2]
[346330385,1734895846333,-2735.53203099,0.00013699,2]
[346330387,1734895846346,-2651.36181466,0.00013699,2]
[346330389,1734895846355,-2651.36181466,0.00013699,2]
[346330391,1734895846364,-2651.36181466,0.00013699,2]
[346330393,1734895846374,-2651.36181466,0.00013699,2]
[346330395,1734895846383,-2651.36181466,0.00013699,2]
[346330397,1734895846392,-2651.36181466,0.00013699,2]
[346330399,1734895846401,-2651.36181466,0.00013699,2]
[346330401,1734895846410,-2651.36181466,0.00013699,2]
[346330403,1734895846420,-2651.36181466,0.00013699,2]
[346330405,1734895846429,-2651.36181466,0.00013699,2]
[346330407,1734895846438,-2651.36181466,0.00013699,2]
[346330409,1734895846451,-2651.36181466,0.00013699,2]
[346330411,1734895846464,-2651.36181466,0.00013699,2]
[346330413,1734895846475,-2651.36181466,0.00013699,2]
[346330415,1734895846486,-2651.36181466,0.00013699,2]
[346330417,1734895846496,-2651.36181466,0.00013699,2]
[346330419,1734895846505,-2651.36181466,0.00013699,2]
[346330421,1734895846514,-2651.36181466,0.00013699,2]
[346330423,1734895846525,-2651.36181466,0.00013699,2]
[346330425,1734895846535,-2651.36181466,0.00013699,2]
[346330427,1734895846544,-2651.36181466,0.00013699,2]
[346330429,1734895846553,-2651.36181466,0.00013699,2]
[346330431,1734895846562,-2651.36181466,0.00013699,2]
[346330433,1734895846571,-2651.36181466,0.00013699,2]
[346330435,1734895846582,-2651.36181466,0.00013699,2]
[346330437,1734895846592,-2651.36181466,0.00013699,2]
[346330439,1734895846601,-3829.74484336,0.00013699,2]
[346330441,1734895846611,-1000.0,0.0001377,2]
[346330443,1734895846621,-1000.0,0.00013813,2]
[346330445,1734895846630,-1004.70566299,0.00013826,2]
[346330447,1734895846639,-206.7114874,0.00013832,2]
[346330449,1734895846649,-152.0,0.00013859,2]
[346330451,1734895846658,-196.948,0.00013872,2]
[346330453,1734895846667,-666.0,0.00013872,2]
[346330455,1734895846676,-2000.0,0.000139,2]
[346330457,1734895846685,-214.1010007,0.000139,2]
[346330459,1734895846695,-177.5130448,0.000139,2]
[346330461,1734895846704,-352.1566237,0.000139,2]
[346330463,1734895846713,-214.1010007,0.000139,2]
[346330465,1734895846722,-214.1010007,0.000139,2]
[346330467,1734895846731,-153.3554759,0.000139,2]
[346330469,1734895846742,-618.0,0.000139,2]
[346330471,1734895846750,-214.1010007,0.000139,2]
[346330473,1734895846760,-776.0,0.000139,4]
[346330475,1734895846769,-1000.0,0.00013953,2]
[346330477,1734895846779,-2140.0,0.00013962,2]
[346330479,1734895846788,-534.0,0.00013962,2]
[346330481,1734895846797,-2362.0,0.00013962,2]
[346330483,1734895846806,-155.01,0.00013971,2]
[346330485,1734895846816,-248.48150246,0.00013971,2]
[346330487,1734895846825,-160.0,0.00013971,2]
[346330489,1734895846834,-500.0,0.00013972,2]
[346330491,1734895846843,-509.34422276,0.00013972,2]
[346330493,1734895846853,-500.0,0.00013972,2]
[346330495,1734895846862,-201.08838092,0.00013972,2]
[346330497,1734895846872,-500.0,0.00013972,2]
[346330499,1734895846881,-500.0,0.00013972,2]
[346330501,1734895846890,-711.53,0.00013972,2]
[346330502,1734895846900,-500.0,0.00013972,2]
[346330504,1734895846909,-500.0,0.00013972,2]
[346330506,1734895846918,-500.0,0.00013972,2]
[346330508,1734895846927,-500.0,0.00013972,2]
[346330510,1734895846936,-1127.79,0.00013972,2]
[346330512,1734895846946,-500.0,0.00013972,2]
[346330514,1734895846955,-500.0,0.00013972,2]
[346330516,1734895846965,-500.0,0.00013972,2]
[346330518,1734895846975,-500.0,0.00013972,2]
[346330520,1734895846984,-611.37,0.00013972,2]
[346330522,1734895846993,-562.77157565,0.00013972,2]
[346330524,1734895847002,-738.12,0.00013972,2]
[346330526,1734895847012,-500.0,0.00013972,2]
[346330528,1734895847022,-500.0,0.00013972,2]
[346330530,1734895847031,-404.84770705,0.00013972,2]
[346330532,1734895847041,-500.0,0.00013972,2]
[346330534,1734895847050,-500.0,0.00013972,2]
[346330536,1734895847060,-500.0,0.00013972,2]
[346330538,1734895847069,-1144.97,0.00013972,2]
[346330540,1734895847079,-500.0,0.00013972,2]
[346330542,1734895847088,-500.0,0.00013972,2]
[346330544,1734895847097,-500.0,0.00013972,2]
[346330546,1734895847106,-507.40298177,0.00013972,2]
[346330548,1734895847115,-500.0,0.00013972,2]
[346330550,1734895847125,-500.0,0.00013972,2]
[346330552,1734895847134,-500.0,0.00013972,2]
[346330554,1734895847143,-500.0,0.00013972,2]
[346330556,1734895847153,-2190.13,0.00013972,2]
[346330558,1734895847163,-500.0,0.00013972,2]
[346330560,1734895847172,-271.9048754,0.00013972,2]
[346330562,1734895847182,-500.0,0.00013972,2]
[346330564,1734895847191,-500.0,0.00013972,2]
[346330566,1734895847200,-500.0,0.00013972,2]
[346330568,1734895847210,-567.95,0.00013972,2]
[346330590,1734895847395,-500.0,0.00013972,2]
[346330592,1734895847405,-818.66,0.00013972,2]
[346330594,1734895847415,-615.63,0.00013972,2]
[346330596,1734895847424,-500.0,0.00013972,2]
[346330598,1734895847434,-728.76,0.00013972,2]
[346330600,1734895847443,-500.0,0.00013972,2]
[346330602,1734895847460,-616.6,0.00013972,2]
[346330604,1734895847469,-500.0,0.00013972,2]
[346330606,1734895847480,-500.0,0.00013972,2]
[346330608,1734895847489,-500.0,0.00013972,2]
[346330610,1734895847498,-500.0,0.00013972,2]
[346330612,1734895847508,-500.0,0.00013972,2]
[346330614,1734895847517,-500.0,0.00013972,2]
[346330616,1734895847526,-582.48,0.00013972,2]
[346330618,1734895847536,-500.0,0.00013972,2]
[346330620,1734895847545,-500.0,0.00013972,2]
[346330622,1734895847555,-500.0,0.00013972,2]
[346330624,1734895847564,-618.09,0.00013972,2]
[346330626,1734895847573,-500.0,0.00013972,2]
[346330628,1734895847583,-367.41266012,0.00013972,2]
[346330629,1734895847593,-709.43,0.00013972,2]
[346330632,1734895847603,-500.0,0.00013972,2]
[346330634,1734895847614,-1013.61,0.00013972,2]
[346330636,1734895847623,-500.0,0.00013972,2]
[346330637,1734895847633,-231.57,0.00013972,2]
[346330639,1734895847643,-500.0,0.00013972,2]
[346330641,1734895847652,-500.0,0.00013972,2]
[346330643,1734895847662,-1298.84,0.00013972,2]
[346330645,1734895847671,-827.65,0.00013972,2]
[346330647,1734895847681,-1977.32,0.00013972,2]
[346330650,1734895847692,-500.0,0.00013972,2]
[346330652,1734895847701,-500.0,0.00013972,2]
[346330654,1734895847718,-500.0,0.00013972,2]
[346330656,1734895847727,-500.0,0.00013972,2]
[346330657,1734895847737,-500.0,0.00013972,2]
[346330660,1734895847747,-500.0,0.00013972,2]
[346330661,1734895847757,-500.0,0.00013972,2]
[346330664,1734895847767,-500.0,0.00013972,2]
[346330665,1734895847777,-500.0,0.00013972,2]
[346330667,1734895847786,-3834.83,0.00013972,2]
[346330669,1734895847795,-500.0,0.00013972,2]
[346330672,1734895847806,-500.0,0.00013972,2]
[346330673,1734895847817,-507.8617084,0.00013972,2]
[346330675,1734895847827,-769.23,0.00013972,2]
[346330678,1734895847837,-500.0,0.00013972,2]
[346330679,1734895847846,-1567.34,0.00013972,2]
[346330682,1734895847855,-500.0,0.00013972,2]
[346330683,1734895847865,-1684.33,0.00013972,2]
[346330686,1734895847874,-500.0,0.00013972,2]
[346330688,1734895847884,-517.27391455,0.00013972,2]
[346330690,1734895847894,-2075.78,0.00013972,2]
[346330692,1734895847903,-1038.6,0.00013972,2]
[346330694,1734895847913,-500.0,0.00013972,2]
[346330695,1734895847922,-1270.4,0.00013972,2]
[346330696,1734895847931,-1342.34,0.00013972,2]
[346330697,1734895847940,-500.0,0.00013972,2]
[346330698,1734895847949,-1096.45,0.00013972,2]
[346330699,1734895847963,-1216.6,0.00013972,2]
[346330701,1734895847973,-500.0,0.00013972,2]
[346330703,1734895847981,-500.0,0.00013972,2]
[346330705,1734895847990,-500.0,0.00013972,2]
[346330707,1734895848000,-552.16,0.00013972,2]
[346330709,1734895848009,-500.0,0.00013972,2]
[346330711,1734895848019,-500.0,0.00013972,2]
[346330713,1734895848029,-718.84,0.00013972,2]
[346330715,1734895848039,-606.61264286,0.00013972,2]
[346330717,1734895848048,-500.0,0.00013972,2]
[346330719,1734895848058,-556.56,0.00013972,2]
[346330721,1734895848068,-500.0,0.00013972,2]
[346330723,1734895848077,-500.0,0.00013972,2]
[346330725,1734895848087,-204.06087272,0.00013972,2]
[346330727,1734895848096,-500.0,0.00013972,2]
[346330729,1734895848106,-500.0,0.00013972,2]
[346330731,1734895848115,-500.0,0.00013972,2]
[346330733,1734895848124,-1018.75,0.00013972,2]
[346330735,1734895848134,-500.0,0.00013972,2]
[346330737,1734895848143,-1152.74,0.00013972,2]
[346330739,1734895848152,-500.0,0.00013972,2]
[346330741,1734895848160,-500.0,0.00013972,2]
[346330743,1734895848170,-732.98,0.00013972,2]
[346330745,1734895848179,-500.0,0.00013972,2]
[346330747,1734895848188,-500.0,0.00013972,2]
[346330749,1734895848197,-500.0,0.00013972,2]
[346330751,1734895848210,-761.51,0.00013972,2]
[346330753,1734895848219,-500.0,0.00013972,2]
[346330755,1734895848228,-528.59,0.00013972,2]
[346330757,1734895848238,-931.94,0.00013972,2]
[346330759,1734895848248,-804.25,0.00013972,2]
[346330761,1734895848258,-267.47586676,0.00013972,2]
[346330763,1734895848267,-500.0,0.00013972,2]
[346330765,1734895848278,-702.24,0.00013972,2]
[346330767,1734895848288,-500.0,0.00013972,2]
[346330769,1734895848298,-500.0,0.00013972,2]
[346330771,1734895848308,-500.0,0.00013972,2]
[346330773,1734895848318,-1458.84,0.00013972,2]
[346330775,1734895848328,-639.01,0.00013972,2]
[346330777,1734895848338,-634.97,0.00013972,2]
[346330779,1734895848349,-589.13,0.00013972,2]
[346330781,1734895848359,-515.88,0.00013972,2]
[346330783,1734895848369,-522.2,0.00013972,2]
[346330785,1734895848379,-500.0,0.00013972,2]
[346330787,1734895848388,-500.0,0.00013972,2]
[346330789,1734895848397,-2333.53,0.00013972,2]
[346330791,1734895848407,-1617.68,0.00013972,2]
[346330793,1734895848417,-1649.19,0.00013972,2]
[346330795,1734895848426,-949.57,0.00013972,2]
[346330797,1734895848436,-500.0,0.00013972,2]
[346330799,1734895848451,-500.0,0.00013972,2]
[346330801,1734895848465,-3009.99,0.00013972,2]
[346330803,1734895848475,-500.0,0.00013972,2]
[346330805,1734895848485,-1306.14,0.00013972,2]
[346330807,1734895848495,-560.26,0.00013972,2]
[346330809,1734895848505,-500.0,0.00013972,2]
[346330812,1734895848515,-500.0,0.00013972,2]
[346330814,1734895848527,-2104.91,0.00013972,2]
[346330816,1734895848537,-1106.85,0.00013972,2]
[346330818,1734895848546,-500.0,0.00013972,2]
[346330820,1734895848557,-1871.27,0.00013972,2]
[346330822,1734895848567,-500.0,0.00013972,2]
[346330824,1734895848576,-784.43,0.00013972,2]
[346330826,1734895848586,-500.0,0.00013972,2]
[346330828,1734895848595,-1111.11,0.00013972,2]
[346330830,1734895848605,-577.21,0.00013972,2]
[346330832,1734895848615,-1498.29,0.00013972,2]
[346330834,1734895848625,-500.0,0.00013972,2]
[346330836,1734895848637,-1266.06,0.00013972,2]
[346330838,1734895848646,-933.18,0.00013972,2]
[346330840,1734895848656,-500.0,0.00013972,2]
[346330842,1734895848667,-649.37185991,0.00013972,2]
[346330844,1734895848677,-3150.23,0.00013972,2]
[346330846,1734895848687,-646.14,0.00013972,2]
[346330848,1734895848698,-676.21,0.00013972,2]
[346330850,1734895848709,-500.0,0.00013972,2]
[346330852,1734895848719,-1411.61,0.00013972,2]
[346330854,1734895848729,-500.0,0.00013972,2]
[346330856,1734895848738,-500.0,0.00013972,2]
[346330859,1734895848748,-676.31,0.00013972,2]
[346330861,1734895848758,-553.06,0.00013972,2]
[346330862,1734895848768,-500.0,0.00013972,2]
[346330865,1734895848778,-2938.6,0.00013972,2]
[346330866,1734895848788,-543.80057151,0.00013972,2]
[346330868,1734895848798,-500.0,0.00013972,2]
[346330871,1734895848809,-578.12,0.00013972,2]
[346330872,1734895848819,-508.04087699,0.00013972,2]
[346330874,1734895848828,-500.0,0.00013972,2]
[346330876,1734895848838,-500.0,0.00013972,2]
[346330878,1734895848847,-500.0,0.00013972,2]
[346330881,1734895848858,-579.17,0.00013972,2]
[346330882,1734895848867,-727.4,0.00013972,2]
[346330884,1734895848877,-500.0,0.00013972,2]
[346330886,1734895848887,-500.0,0.00013972,2]
[346330888,1734895848897,-1050.18,0.00013972,2]
[346330890,1734895848907,-947.45,0.00013972,2]
[346330892,1734895848917,-733.64,0.00013972,2]
[346330895,1734895848926,-2124.47,0.00013972,2]
[346330897,1734895848936,-500.0,0.00013972,2]
[346330899,1734895848947,-691.73,0.00013972,2]
[346330901,1734895848959,-29752.32,0.00013972,2]
[346330902,1734895848968,-500.0,0.00013972,2]
[346330904,1734895848978,-500.0,0.00013972,2]
[346330906,1734895848988,-500.0,0.00013972,2]
[346330908,1734895848998,-500.0,0.00013972,2]
[346330910,1734895849008,-500.0,0.00013972,2]
[346330912,1734895849017,-1661.69,0.00013972,2]
[346330914,1734895849027,-617.68,0.00013972,2]
[346330917,1734895849037,-253.76990009,0.00013972,2]
[346330919,1734895849048,-388.9115591,0.00013972,2]
[346330921,1734895849058,-15314.54,0.00013972,2]
[346330923,1734895849071,-500.0,0.00013972,2]
[346330925,1734895849081,-69927.29,0.00013972,2]
[346330927,1734895849091,-500.0,0.00013972,2]
[346330929,1734895849101,-518.18,0.00013972,2]
[346330931,1734895849110,-926.85,0.00013972,2]
[346330934,1734895849127,-1419.1,0.00013972,2]
[346330936,1734895849141,-452.36086737,0.00013972,2]
[346330939,1734895849155,-500.0,0.00013972,2]
[346330941,1734895849169,-150.11,0.00013972,2]
[346330943,1734895849181,-500.0,0.00013972,2]
[346330946,1734895849194,-4338.95,0.00013972,2]
[346330948,1734895849208,-583.65,0.00013972,2]
[346330951,1734895849221,-500.0,0.00013972,2]
[346330953,1734895849235,-500.0,0.00013972,2]
[346330955,1734895849248,-500.0,0.00013972,2]
[346330958,1734895849262,-541.30300177,0.00013972,2]
[346330960,1734895849276,-926.98,0.00013972,2]
[346330962,1734895849289,-11218.66,0.00013972,2]
[346330965,1734895849303,-500.0,0.00013972,2]
[346330967,1734895849317,-500.0,0.00013972,2]
[346330969,1734895849328,-544.4,0.00013972,2]
[346330972,1734895849341,-500.0,0.00013972,2]
[346330974,1734895849353,-500.0,0.00013972,2]
[346330976,1734895849365,-500.0,0.00013972,2]
[346330978,1734895849379,-507.07181368,0.00013972,2]
[346330981,1734895849391,-500.0,0.00013972,2]
[346330983,1734895849403,-500.0,0.00013972,2]
[346330985,1734895849415,-500.0,0.00013972,2]
[346330987,1734895849426,-549.96,0.00013972,2]
[346330990,1734895849437,-500.0,0.00013972,2]
[346330992,1734895849453,-500.0,0.00013972,2]
[346330994,1734895849467,-21921.41,0.00013972,2]
[346330996,1734895849481,-870.35,0.00013972,2]
[346330999,1734895849494,-500.0,0.00013972,2]
[346331001,1734895849508,-500.0,0.00013972,2]
[346331003,1734895849520,-2005.79059189,0.00013972,2]
[346331640,1734895875730,328.222,0.0001327,2]
[346331643,1734896834357,-772.506,0.00012713,2]
[346331644,1734896844086,-696.8592,0.00012713,2]
[346331645,1734896949088,-787.0186265,0.00012713,2]
[346331646,1734896949109,-113.6601735,0.00012747,2]
[346331647,1734896965104,-200.7888265,0.00012747,2]
[346331648,1734896965127,-314.607,0.0001327,2]
[346331649,1734896968440,200.7888265,0.0001262,2]
[346331705,1734897036344,-3052.04187883,0.00013462,2]
[346331707,1734897036354,-2707.39153564,0.00013598,2]
[346331709,1734897036363,-344.65034319,0.00013598,2]
[346331711,1734897036375,-300.0,0.00013695,2]
[346331713,1734897036384,-300.0,0.00013695,2]
[346331715,1734897036393,-500.0,0.00013697,2]
[346331717,1734897036402,-500.0,0.00013697,2]
[346331719,1734897036411,-500.0,0.00013697,2]
[346331721,1734897036421,-157.44801996,0.00013697,2]
[346331723,1734897036430,-500.0,0.00013697,2]
[346331725,1734897036439,-500.0,0.00013697,2]
[346331727,1734897036448,-242.04201739,0.00013697,2]
[346331729,1734897036457,-500.0,0.00013698,2]
[346331731,1734897036466,-500.0,0.00013698,2]
[346331733,1734897036475,-500.0,0.00013698,2]
[346331735,1734897036484,-500.0,0.00013698,2]
[346331737,1734897036493,-500.0,0.00013698,2]
[346331739,1734897036503,-514.5209709,0.00013698,2]
[346331741,1734897036511,-500.0,0.00013698,2]
[346331743,1734897036521,-500.0,0.00013698,2]
[346331745,1734897036530,-804.62,0.00013698,2]
[346331747,1734897036539,-500.0,0.00013698,2]
[346331749,1734897036548,-500.0,0.00013698,2]
[346331751,1734897036557,-500.0,0.00013698,2]
[346331753,1734897036566,-500.0,0.00013698,2]
[346331755,1734897036575,-508.4967355,0.00013698,2]
[346331757,1734897036585,-500.0,0.00013698,2]
[346331759,1734897036594,-222.00794565,0.00013698,2]
[346331761,1734897036603,-490.21922074,0.00013698,2]
[346331763,1734897036612,-393.57586248,0.00013698,2]
[346331765,1734897036625,-500.0,0.00013698,2]
[346331767,1734897036634,-500.0,0.00013698,2]
[346331769,1734897036643,-500.0,0.00013698,2]
[346331771,1734897036652,-500.0,0.00013698,2]
[346331773,1734897036660,-500.0,0.00013698,2]
[346331775,1734897036669,-500.0,0.00013698,2]
[346331777,1734897036679,-500.0,0.00013698,2]
[346331779,1734897036688,-500.0,0.00013698,2]
[346331781,1734897036697,-500.0,0.00013698,2]
[346331783,1734897036707,-211.68658769,0.00013698,2]
[346331785,1734897036715,-500.0,0.00013698,2]
[346331787,1734897036724,-500.0,0.00013698,2]
[346331789,1734897036734,-500.0,0.00013698,2]
[346331791,1734897036743,-500.0,0.00013698,2]
[346331793,1734897036752,-500.0,0.00013698,2]
[346331795,1734897036761,-500.0,0.00013698,2]
[346331797,1734897036771,-585.76,0.00013698,2]
[346331798,1734897036779,-737.23,0.00013698,2]
[346331799,1734897036789,-540.04,0.00013698,2]
[346331800,1734897036798,-668.03,0.00013698,2]
[346331801,1734897036807,-929.14,0.00013698,2]
[346331802,1734897036816,-500.0,0.00013698,2]
[346331803,1734897036826,-500.0,0.00013698,2]
[346331804,1734897036835,-565.21,0.00013698,2]
[346331805,1734897036844,-475.61301078,0.00013698,2]
[346331806,1734897036853,-533.94,0.00013698,2]
[346331807,1734897036863,-500.0,0.00013698,2]
[346331808,1734897036873,-900.89417244,0.00013698,2]
[346331821,1734897037988,-911.64582756,0.00013698,2]
[346331822,1734897037998,-500.0,0.00013698,2]
[346331823,1734897038007,-91.04079338,0.00013698,2]
[346331824,1734897038190,-272.35112235,0.00013698,2]
[346331825,1734897038202,-136.60808427,0.00013698,2]
[346331826,1734897038211,-125.94266867,0.00013698,2]
[346331828,1734897038223,-374.05733133,0.00013698,2]
[346331829,1734897038232,-500.0,0.00013698,2]
[346331830,1734897038242,-500.0,0.00013698,2]
[346331831,1734897038252,-535.80259069,0.00013698,2]
[346331832,1734897038261,-500.0,0.00013698,2]
[346331833,1734897038270,-529.1,0.00013698,2]
[346331834,1734897038280,-619.86,0.00013698,2]
[346331835,1734897038289,-500.0,0.00013698,2]
[346331836,1734897038298,-500.0,0.00013698,2]
[346331837,1734897038308,-500.0,0.00013698,2]
[346331838,1734897038317,-1190.61,0.00013698,2]
[346331839,1734897038327,-1436.73,0.00013698,2]
[346331840,1734897038336,-506.98,0.00013698,2]
[346331841,1734897038346,-212.27,0.00013698,2]
[346331842,1734897038355,-500.0,0.00013698,2]
[346331843,1734897038364,-500.0,0.00013698,2]
[346331844,1734897038376,-1902.8,0.00013698,2]
[346331845,1734897038385,-3515.26,0.00013698,2]
[346331846,1734897038395,-1230.48,0.00013698,2]
[346331847,1734897038404,-500.0,0.00013698,2]
[346331848,1734897038413,-500.0,0.00013698,2]
[346331849,1734897038423,-700.43700991,0.00013698,2]
[346331860,1734897040162,-414.78299009,0.00013698,2]
[346331861,1734897040171,-500.0,0.00013698,2]
[346331862,1734897040180,-705.13,0.00013698,2]
[346331863,1734897040189,-672.5,0.00013698,2]
[346331864,1734897040198,-506.14,0.00013698,2]
[346331865,1734897040207,-1543.96,0.00013698,2]
[346331866,1734897040217,-500.0,0.00013698,2]
[346331867,1734897040226,-658.94,0.00013698,2]
[346331868,1734897040235,-500.0,0.00013698,2]
[346331869,1734897040244,-521.58951824,0.00013698,2]
[346331870,1734897040255,-952.05,0.00013698,2]
[346331871,1734897040264,-500.0,0.00013698,2]
[346331872,1734897040273,-500.0,0.00013698,2]
[346331873,1734897040282,-29.61637179,0.00013698,2]
[346331924,1734897043878,-668.43362821,0.00013698,2]
[346331925,1734897043889,-500.0,0.00013698,2]
[346331926,1734897043899,-500.0,0.00013698,2]
[346331927,1734897043911,-1164.54,0.00013698,2]
[346331928,1734897043920,-671.9,0.00013698,2]
[346331929,1734897043929,-500.0,0.00013698,2]